{"text_format":"1","workbook":"xlsx","n_sheets":23,"sheets":["Sheet8","يناير2020","Sheet7","فبراير2020","مارس2020","ابريل 2020","Sheet6","مايو22020","Sheet5","يونيو 2020","يوليو 2020","Sheet9","اغسطس2019","سبتمبر 2019","Sheet10","اكتوبر2019","Sheet4","نوفمبر2019","Sheet3","ديسمبر2019","Sheet2","pivot","data"],"not_rendered":{"charts":1,"images":0,"macros":1,"external_links":0,"defined_names":28,"comments":0,"pivot_tables":9},"unopened":[],"bounds":{"document_bytes":16777216,"sheet_cells":100000,"rows_first":2000,"rows_last":500,"rows_between":2000,"halvings":0,"cell_chars":16384,"cell_head_chars":4096},"cells_cut":0,"cells_raw":0,"read":"whole","date_system":"1900"}

{"sheet":"Sheet8","index":0,"n_rows":5,"n_cols":5,"rows_kept":5,"cut":false,"hidden":false,"merged":[]}
[null,null,"2020-01-01"]
[]
["اسم الشركة"," التاريخ"," القيمة قبل الضريبة"," الضريبة"," القيمة بعد الضريبة"]
["(blank)",null,0,0,0]
["Grand Total",null,0,0,0]

{"sheet":"يناير2020","index":1,"n_rows":67,"n_cols":11,"rows_kept":67,"cut":false,"hidden":false,"merged":[[58,0,58,3]]}
[]
[]
[]
[]
["م","اسم الشركة","العنوان","رقم الفاتورة","القيمة قبل الضريبة","الضريبة","القيمة بعد الضريبة","التاريخ",0.01,"رقم التسجيل ","رقم الملف"]
[1,null,null,null,{"$f":"G6/114%","v":0},{"$f":"E6*14%","v":0},null,null,{"$f":"E6*1%","v":0}]
[{"$f":"A6+1","v":2},null,null,null,{"$f":"G7/114%","v":0},0,null,null,{"$f":"E7*1%","v":0}]
[{"$f":"A7+1","v":3},null,null,null,0,0,null,null,0]
[4,null,null,null,0,0,null,null,0]
[5,null,null,null,0,0,null,null,0]
[6,null,null,null,0,0,null,null,0]
[7,null,null,null,0,0,null,null,0]
[8,null,null,null,0,0,null,null,0]
[9,null,null,null,0,0,null,null,0]
[10,null,null,null,0,0,null,null,0]
[11,null,null,null,0,0,null,null,0]
[12,null,null,null,0,0,null,null,0]
[13,null,null,null,0,0,null,null,0]
[14,null,null,null,0,0,null,null,0]
[15,null,null,null,0,0,null,null,0]
[16,null,null,null,0,0,null,null,0]
[17,null,null,null,0,0,null,null,0]
[18,null,null,null,0,0,null,null,0]
[19,null,null,null,0,0,null,null,0]
[20,null,null,null,0,0,null,null,0]
[21,null,null,null,0,0,null,null,0]
[22,null,null,null,0,0,null,null,0]
[23,null,null,null,0,0,null,null,0]
[24,null,null,null,0,0,null,null,0]
[25,null,null,null,0,0,null,null,0]
[26,null,null,null,0,0,null,null,0]
[27,null,null,null,0,0,null,null,0]
[28,null,null,null,0,0,null,null,0]
[29,null,null,null,0,0,null,null,0]
[30,null,null,null,0,0,null,null,0]
[31,null,null,null,0,0,null,null,0]
[32,null,null,null,0,0,null,null,0]
[33,null,null,null,0,0,null,null,0]
[34,null,null,null,0,0,null,null,0]
[35,null,null,null,0,0,null,null,0]
[36,null,null,null,0,0,null,null,0]
[37,null,null,null,0,0,null,null,0]
[38,null,null,null,0,0,null,null,0]
[39,null,null,null,0,0,null,null,0]
[40,null,null,null,0,0,null,null,0]
[41,null,null,null,0,0,null,null,0]
[42,null,null,null,0,0,null,null,0]
[43,null,null,null,0,0,null,null,0]
[44,null,null,null,0,0,null,null,0]
[45,null,null,null,0,0]
[46,null,null,null,0,0]
[47,null,null,null,0,{"$f":"E52*14%","v":0},null,null,0]
[48,null,null,null,0,0,null,null,0]
[49,null,null,null,null,{"$f":"E54*14%","v":0},null,null,0]
[50,null,null,null,null,0,null,null,0]
[51,null,null,null,null,0,null,null,0]
[52,null,null,null,null,0,null,null,0]
[53,null,null,null,null,0,{"$f":"E58+F58","v":0},null,0]
["الاجمالى",null,null,null,{"$f":"SUM(E6:E58)","v":0},{"$f":"E59*14/100","v":0},{"$f":"E59+F59","v":0},null,{"$f":"SUM(I6:I58)","v":0}]
[]
[]
[null,null,"\"\"\"\""]
[null,null,"\"\" 555\"\""]
[]
[null,null,null,{"$f":"D64*13%","v":0}]
[null,null,33,264.25620000000004]
[null,null,null,{"$f":"SUM(D65:D66)","v":264.25620000000004}]

{"sheet":"Sheet7","index":2,"n_rows":6,"n_cols":5,"rows_kept":6,"cut":false,"hidden":false,"merged":[]}
[null,null,"2019-02-01"]
[]
["اسم الشركة"," التاريخ"," القيمة قبل الضريبة"," الضريبة"," القيمة بعد الضريبة"]
["(blank)",null,0,0]
["(blank)",null,0,0]
["Grand Total",null,0,0]

{"sheet":"فبراير2020","index":3,"n_rows":68,"n_cols":9,"rows_kept":68,"cut":false,"hidden":false,"merged":[[59,0,59,3]]}
[]
[]
[]
[]
["م","اسم الشركة","العنوان","رقم الفاتورة","القيمة قبل الضريبة","الضريبة","القيمة بعد الضريبة","التاريخ",0.01]
[1,null,null,null,{"$f":"G6/114%","v":0},{"$f":"E6*14%","v":0},null,null,{"$f":"E6*1%","v":0}]
[{"$f":"A6+1","v":2},null,null,null,0,0,null,null,{"$f":"E7*1%","v":0}]
[{"$f":"A7+1","v":3},null,null,null,0,0,null,null,0]
[4,null,null,null,0,0,null,null,0]
[5,null,null,null,0,{"$f":"E10*14%","v":0},null,null,0]
[6,null,null,null,{"$f":"G11/114%","v":0},{"$f":"E11*14%","v":0},null,null,0]
[7,null,null,null,0,0,null,null,0]
[8,null,null,null,0,0,null,null,0]
[9,null,null,null,0,0,null,null,0]
[10,null,null,null,0,0,null,null,0]
[11,null,null,null,0,0,null,null,0]
[12,null,null,null,0,0,null,null,0]
[13,null,null,null,0,0,null,null,0]
[14,null,null,null,0,0,null,null,0]
[15,null,null,null,0,0,null,null,0]
[16,null,null,null,0,0,null,null,0]
[17,null,null,null,0,0,null,null,0]
[18,null,null,null,0,0,null,null,0]
[19,null,null,null,0,0,null,null,0]
[20,null,null,null,0,0,null,null,0]
[21,null,null,null,0,0,null,null,0]
[22,null,null,null,0,0,null,null,0]
[23,null,null,null,0,0,null,null,0]
[24,null,null,null,0,0,null,null,0]
[25,null,null,null,0,0,null,null,0]
[26,null,null,null,0,0,null,null,0]
[27,null,null,null,0,0,null,null,0]
[28,null,null,null,0,0,null,null,0]
[29,null,null,null,0,0,null,null,0]
[30,null,null,null,0,0,null,null,0]
[31,null,null,null,0,{"$f":"E36*14%","v":0},null,null,0]
[32,null,null,null,0,0,null,null,0]
[33,null,null,null,0,0,null,null,0]
[34,null,null,null,0,0,null,null,0]
[35,null,null,null,0,0,null,null,0]
[36,null,null,null,0,0,null,null,0]
[37,null,null,null,0,0,null,null,0]
[38,null,null,null,0,0,null,null,0]
[39,null,null,null,0,{"$f":"E44*14%","v":0},null,null,0]
[40,null,null,null,0,0,null,null,0]
[41,null,null,null,0,0,null,null,0]
[42,null,null,null,0,0,null,null,0]
[43,null,null,null,0,{"$f":"E48*14%","v":0},null,null,0]
[44,null,null,null,0,0,null,null,0]
[45,null,null,null,0,0,null,null,0]
[46,null,null,null,0,{"$f":"E51*14%","v":0},null,null,0]
[47,null,null,null,0,0,null,null,0]
[48,null,null,null,0,0,null,null,0]
[49,null,null,null,0,{"$f":"E54*14%","v":0},null,null,0]
[50,null,null,null,0,0,null,null,0]
[51,null,null,null,0,{"$f":"E56*14%","v":0},null,null,0]
[52,null,null,null,0,0,null,null,0]
[53,null,null,null,0,0,null,null,0]
[54,null,null,null,0,0,null,null,0]
["الاجمالى",null,null,null,{"$f":"SUM(E6:E59)","v":0},{"$f":"E60*14/100","v":0},{"$f":"E60+F60","v":0},null,{"$f":"SUM(I6:I59)","v":0}]
[]
[null,null,null,null,{"$f":"SUM(E6:E59)","v":0},{"$f":"SUM(F6:F59)","v":0},{"$f":"SUM(G6:G59)","v":0}]
[]
[null,null,null,1894055.04,{"$f":"E62*13/100","v":0}]
[null,null,null,1894022.3,1894022.2990000001,{"$f":"E60*13/100","v":0},{"$f":"E65+F65","v":1894022.2990000001}]
[null,null,null,{"$f":"D65*13%","v":246222.899},1894022.2990000001,{"$f":"E60*13/100","v":0},{"$f":"E66+F66","v":1894022.2990000001}]
[null,null,null,264.25620000000004]
[null,null,null,{"$f":"SUM(D66:D67)","v":246487.15520000001}]

{"sheet":"مارس2020","index":4,"n_rows":70,"n_cols":9,"rows_kept":70,"cut":false,"hidden":false,"merged":[[60,0,60,3]]}
[]
[]
[]
[]
["م","اسم الشركة","العنوان","رقم الفاتورة","القيمة قبل الضريبة","الضريبة","القيمة بعد الضريبة","التاريخ",0.01]
[1,null,null,null,{"$f":"G6/114%","v":0},{"$f":"E6*14%","v":0},null,null,{"$f":"E6*$I$5","v":0}]
[{"$f":"A6+1","v":2},null,null,null,0,0,null,null,{"$f":"E7*$I$5","v":0}]
[{"$f":"A7+1","v":3},null,null,null,0,0,null,null,0]
[{"$f":"A8+1","v":4},null,null,null,0,0,null,null,0]
[5,null,null,null,{"$f":"G10/114%","v":0},{"$f":"E10*14%","v":0},null,null,0]
[6,null,null,null,{"$f":"G11/114%","v":0},{"$f":"E11*14%","v":0},null,null,0]
[7,null,null,null,0,0,null,null,0]
[8,null,null,null,0,0,null,null,0]
[9,null,null,null,0,0,null,null,0]
[10,null,null,null,0,0,null,null,0]
[11,null,null,null,0,0,null,null,0]
[12,null,null,null,0,0,null,null,0]
[13,null,null,null,0,0,null,null,0]
[14,null,null,null,0,0,null,null,0]
[15,null,null,null,0,0,null,null,0]
[16,null,null,null,0,0,null,null,0]
[17,null,null,null,0,0,null,null,0]
[18,null,null,null,0,0,null,null,0]
[19,null,null,null,0,0,null,null,0]
[20,null,null,null,0,0,null,null,0]
[21,null,null,null,0,0,null,null,0]
[22,null,null,null,0,0,null,null,0]
[23,null,null,null,0,0,null,null,0]
[24,null,null,null,0,0,null,null,0]
[25,null,null,null,0,0,null,null,0]
[26,null,null,null,0,{"$f":"E31*14%","v":0},null,null,0]
[27,null,null,null,0,{"$f":"E32*14%","v":0},null,null,0]
[28,null,null,null,0,0,null,null,0]
[29,null,null,null,0,0,null,null,0]
[30,null,null,null,0,0,null,null,0]
[31,null,null,null,0,0,null,null,0]
[32,null,null,null,0,0,null,null,0]
[33,null,null,null,0,{"$f":"E38*14%","v":0},null,null,0]
[34,null,null,null,0,0,null,null,0]
[35,null,null,null,0,0,null,null,0]
[36,null,null,null,0,0,null,null,0]
[37,null,null,null,0,0,null,null,0]
[38,null,null,null,0,{"$f":"E43*14%","v":0},null,null,0]
[39,null,null,null,0,{"$f":"E44*14%","v":0},null,null,0]
[40,null,null,null,0,0,null,null,0]
[41,null,null,null,0,0,null,null,0]
[42,null,null,null,0,0,null,null,0]
[43,null,null,null,0,0,null,null,0]
[44,null,null,null,0,0,null,null,0]
[45,null,null,null,0,0,null,null,0]
[46,null,null,null,0,0,null,null,0]
[47,null,null,null,0,{"$f":"E52*14%","v":0},null,null,0]
[48,null,null,null,0,0,null,null,0]
[49,null,null,null,0,0,null,null,0]
[50,null,null,null,0,{"$f":"E55*14%","v":0},null,null,0]
[51,null,null,null,0,0,null,null,0]
[52,null,null,null,0,{"$f":"E57*14%","v":0},null,null,0]
[53,null,null,null,0,{"$f":"E58*14%","v":0},null,null,0]
[54,null,null,null,0,0,null,null,0]
[55,null,null,null,0,0,null,null,0]
["الاجمالى",null,null,null,{"$f":"SUM(E6:E60)","v":0},{"$f":"E61*14%","v":0},{"$f":"E61+F61","v":0},null,{"$f":"SUM(I6:I60)","v":0}]
[]
[null,null,null,null,{"$f":"SUM(E7:E51)","v":0},{"$f":"SUM(F7:F61)","v":0},{"$f":"SUM(G7:G51)","v":0}]
[]
[null,null,null,1894055.04,{"$f":"E63*13/100","v":0}]
[null,null,null,1894022.3,1894022.2990000001,{"$f":"E61*13/100","v":0},{"$f":"E66+F66","v":1894022.2990000001}]
[null,null,null,{"$f":"D66*13%","v":246222.899},1005016.2209999999,{"$f":"E61*13/100","v":0},{"$f":"E67+F67","v":1005016.2209999999}]
[null,null,null,264.25620000000004]
[null,null,null,{"$f":"SUM(D67:D68)","v":246487.15520000001}]
[null,null,null,null,{"$f":"E61-E67","v":-1005016.2209999999}]

{"sheet":"ابريل 2020","index":5,"n_rows":69,"n_cols":9,"rows_kept":69,"cut":false,"hidden":false,"merged":[[60,0,60,3]]}
[]
[]
[]
[]
["م","اسم الشركة","العنوان","رقم الفاتورة","القيمة قبل الضريبة","الضريبة","القيمة بعد الضريبة","التاريخ",0.01]
[1,null,null,null,{"$f":"G6/114%","v":0},{"$f":"E6*14%","v":0},null,null,{"$f":"E6*$I$5","v":0}]
[{"$f":"A6+1","v":2},null,null,null,{"$f":"G7/114%","v":0},{"$f":"E7*14%","v":0},null,null,{"$f":"E7*$I$5","v":0}]
[{"$f":"A7+1","v":3},null,null,null,0,0,null,null,0]
[{"$f":"A8+1","v":4},null,null,null,0,0,null,null,0]
[5,null,null,null,0,0,null,null,0]
[6,null,null,null,0,0,null,null,0]
[7,null,null,null,0,0,null,null,0]
[8,null,null,null,0,0,null,null,0]
[9,null,null,null,0,0,null,null,0]
[10,null,null,null,0,0,null,null,0]
[11,null,null,null,0,0,null,null,0]
[12,null,null,null,0,0,null,null,0]
[13,null,null,null,0,0,null,null,0]
[14,null,null,null,0,0,null,null,0]
[15,null,null,null,0,0,null,null,0]
[16,null,null,null,0,0,null,null,0]
[17,null,null,null,0,0,null,null,0]
[18,null,null,null,0,0,null,null,0]
[19,null,null,null,0,0,null,null,0]
[20,null,null,null,0,0,null,null,0]
[21,null,null,null,0,0,null,null,0]
[22,null,null,null,0,0,null,null,0]
[23,null,null,null,0,0,null,null,0]
[24,null,null,null,0,0,null,null,0]
[25,null,null,null,0,0,null,null,0]
[26,null,null,null,0,0,null,null,0]
[{"$f":"A31+1","v":27},null,null,null,0,0,null,null,0]
[28,null,null,null,0,0,null,null,0]
[29,null,null,null,0,0,null,null,0]
[30,null,null,null,0,0,null,null,0]
[31,null,null,null,0,0,null,null,0]
[32,null,null,null,0,0,null,null,0]
[33,null,null,null,0,0,null,null,0]
[34,null,null,null,0,0,null,null,0]
[35,null,null,null,0,0,null,null,0]
[36,null,null,null,0,0,null,null,0]
[37,null,null,null,0,0,null,null,0]
[38,null,null,null,0,0,null,null,0]
[39,null,null,null,0,0,null,null,0]
[40,null,null,null,0,0,null,null,0]
[41,null,null,null,0,0,null,null,0]
[42,null,null,null,0,0,null,null,0]
[43,null,null,null,0,0,null,null,0]
[44,null,null,null,0,0,null,null,0]
[45,null,null,null,0,0,null,null,0]
[46,null,null,null,0,0,null,null,0]
[47,null,null,null,0,0,null,null,0]
[48,null,null,null,0,0,null,null,0]
[49,null,null,null,0,0,null,null,0]
[50,null,null,null,0,0,null,null,0]
[51,null,null,null,0,0,null,null,0]
[52,null,null,null,0,0,null,null,0]
[53,null,null,null,0,0,null,null,0]
[54,null,null,null,0,0,null,null,0]
[55,null,null,null,0,{"$f":"E60*14%","v":0},null,null,0]
["الاجمالى",null,null,null,{"$f":"SUM(E6:E60)","v":0},{"$f":"E61*14%","v":0},{"$f":"E61+F61","v":0},null,{"$f":"SUM(I6:I60)","v":0}]
[]
[null,null,null,null,{"$f":"SUM(E7:E32)","v":0},{"$f":"SUM(F7:F61)","v":0},{"$f":"SUM(G7:G32)","v":0}]
[]
[null,null,null,1894055.04,{"$f":"E63*13/100","v":0}]
[null,null,null,1894022.3,1894022.2990000001,{"$f":"E61*13/100","v":0},{"$f":"E66+F66","v":1894022.2990000001}]
[null,null,null,{"$f":"D66*13%","v":246222.899},1894022.2990000001,{"$f":"E61*13/100","v":0},{"$f":"E67+F67","v":1894022.2990000001}]
[null,null,null,264.25620000000004]
[null,null,null,{"$f":"SUM(D67:D68)","v":246487.15520000001}]

{"sheet":"Sheet6","index":6,"n_rows":6,"n_cols":5,"rows_kept":6,"cut":false,"hidden":false,"merged":[]}
[null,null,"2019-05-01"]
[]
["اسم الشركة"," التاريخ"," القيمة قبل الضريبة"," الضريبة"," القيمة بعد الضريبة"]
["(blank)",null,0,0]
["(blank)",null,0,0]
["Grand Total",null,0,0]

{"sheet":"مايو22020","index":7,"n_rows":66,"n_cols":9,"rows_kept":66,"cut":false,"hidden":false,"merged":[[57,0,57,3]]}
[]
[]
[]
[]
["م","اسم الشركة","العنوان","رقم الفاتورة","القيمة قبل الضريبة","الضريبة","القيمة بعد الضريبة","التاريخ",0.01]
[1,null,null,null,{"$f":"G6/114%","v":0},{"$f":"E6*14%","v":0},null,null,{"$f":"E6*$I$5","v":0}]
[{"$f":"IF(B7<>\"\",A6+1,\"\")","v":""},null,null,null,0,0,null,null,0]
["",null,null,null,0,0,null,null,0]
["",null,null,null,0,0,null,null,0]
["",null,null,null,0,0,null,null,0]
["",null,null,null,0,0,null,null,0]
["",null,null,null,0,0,null,null,0]
["",null,null,null,0,0,null,null,0]
["",null,null,null,0,0,null,null,0]
["",null,null,null,0,0,null,null,0]
["",null,null,null,0,0,null,null,0]
["",null,null,null,0,0,null,null,0]
["",null,null,null,0,0,null,null,0]
["",null,null,null,0,0,null,null,0]
["",null,null,null,0,0,null,null,0]
["",null,null,null,0,0,null,null,0]
["",null,null,null,0,0,null,null,0]
["",null,null,null,0,0,null,null,0]
["",null,null,null,0,0,null,null,0]
["",null,null,null,0,0,null,null,0]
["",null,null,null,0,{"$f":"E26*14%","v":0},null,null,0]
["",null,null,null,0,0,null,null,0]
["",null,null,null,0,0,null,null,0]
["",null,null,null,0,0,null,null,0]
["",null,null,null,0,0,null,null,0]
["",null,null,null,0,0,null,null,0]
["",null,null,null,0,0,null,null,0]
["",null,null,null,0,0,null,null,0]
["",null,null,null,0,0,null,null,0]
["",null,null,null,0,0,null,null,0]
["",null,null,null,0,0,null,null,"2018-03-20"]
["",null,null,null,0,0,null,null,"2018-03-20"]
["",null,null,null,0,0,null,null,"2018-03-20"]
["",null,null,null,0,0,null,null,"2018-03-20"]
["",null,null,null,0,0,null,null,"2018-03-22"]
["",null,null,null,0,0,null,null,"2018-03-25"]
["",null,null,null,0,0,null,null,"2018-03-29"]
["",null,null,null,0,0]
["",null,null,null,0,0]
["",null,null,null,0,0]
["",null,null,null,0,0]
["",null,null,null,0,0]
["",null,null,null,0,0]
["",null,null,null,0,0]
["",null,null,null,0,0]
["",null,null,null,0,0]
["",null,null,null,0,0]
["",null,null,null,0,0]
["",null,null,null,0,0]
["",null,null,null,0,{"$f":"E55*14%","v":0}]
["",null,null,null,0,0]
["",null,null,null,0,0]
["الاجمالى",null,null,null,{"$f":"SUM(E6:E57)","v":0},{"$f":"E58*14%","v":0},{"$f":"E58+F58","v":0}]
[]
[null,null,null,null,{"$f":"SUM(E6:E57)","v":0},{"$f":"SUM(F6:F58)","v":0},{"$f":"SUM(G6:G57)","v":0}]
[]
[]
[null,null,null,1894022.3,1894022.2990000001,{"$f":"E58*13/100","v":0},{"$f":"E63+F63","v":1894022.2990000001}]
[null,null,null,{"$f":"D63*13%","v":246222.899},1894022.2990000001,{"$f":"E58*13/100","v":0},{"$f":"E64+F64","v":1894022.2990000001}]
[null,null,null,264.25620000000004]
[null,null,null,{"$f":"SUM(D64:D65)","v":246487.15520000001}]

{"sheet":"Sheet5","index":8,"n_rows":6,"n_cols":5,"rows_kept":6,"cut":false,"hidden":false,"merged":[]}
[null,null,"2019-06-01"]
[]
["اسم الشركة"," التاريخ"," القيمة قبل الضريبة"," الضريبة"," القيمة بعد الضريبة"]
["(blank)",null,0,0]
["(blank)",null,0,0]
["Grand Total",null,0,0]

{"sheet":"يونيو 2020","index":9,"n_rows":70,"n_cols":9,"rows_kept":70,"cut":false,"hidden":false,"merged":[[61,0,61,3]]}
[]
[]
[]
[]
["م","اسم الشركة","العنوان","رقم الفاتورة","القيمة قبل الضريبة","الضريبة","القيمة بعد الضريبة","التاريخ",0.01]
[1,null,null,null,{"$f":"G6/114%","v":0},{"$f":"E6*14%","v":0},null,null,{"$f":"E6*$I$5","v":0}]
[{"$f":"IF(B7<>\"\",A6+1,\"\")","v":""},null,null,null,{"$f":"G7/114%","v":0},{"$f":"E7*14%","v":0},null,null,{"$f":"E7*$I$5","v":0}]
[{"$f":"IF(B8<>\"\",A7+1,\"\")","v":""},null,null,null,0,0,null,null,{"$f":"E8*$I$5","v":0}]
["",null,null,null,0,0,null,null,0]
["",null,null,null,0,0,null,null,0]
["",null,null,null,0,0,null,null,0]
["",null,null,null,0,0,null,null,0]
["",null,null,null,0,0,null,null,0]
["",null,null,null,0,0,null,null,0]
["",null,null,null,0,0,null,null,0]
["",null,null,null,0,0,null,null,0]
["",null,null,null,0,{"$f":"E17*14/100","v":0},null,null,{"$f":"E17*$I$5","v":0}]
["",null,null,null,0,{"$f":"E18*14/100","v":0},null,null,{"$f":"E18*$I$5","v":0}]
["",null,null,null,0,0]
["",null,null,null,0,0]
["",null,null,null,0,0]
["",null,null,null,0,0]
["",null,null,null,0,0]
["",null,null,null,0,0]
["",null,null,null,0,0]
["",null,null,null,0,0]
["",null,null,null,0,0]
["",null,null,null,0,0]
["",null,null,null,0,0]
["",null,null,null,0,0]
["",null,null,null,0,0]
["",null,null,null,0,0]
["",null,null,null,0,0]
["",null,null,null,0,0]
[{"$f":"IF(B35<>\"\",A34+1,\"\")","v":""},null,null,null,0,0]
["",null,null,null,0,0]
["",null,null,null,0,0]
["",null,null,null,0,0]
["",null,null,null,0,0]
["",null,null,null,0,0]
["",null,null,null,0,0]
["",null,null,null,0,0]
["",null,null,null,0,0]
["",null,null,null,0,0]
["",null,null,null,0,0]
["",null,null,null,0,0]
["",null,null,null,0,0]
["",null,null,null,0,0]
["",null,null,null,0,0]
["",null,null,null,0,0]
["",null,null,null,0,0]
["",null,null,null,0,0]
["",null,null,null,0,0]
["",null,null,null,0,0]
["",null,null,null,0,0]
["",null,null,null,0,0]
["",null,null,null,0,0]
["",null,null,null,0,0]
["",null,null,null,0,0]
["",null,null,null,0,0]
["",null,null,null,0,0]
["الاجمالى",null,null,null,{"$f":"SUM(E6:E61)","v":0},{"$f":"E62*14/100","v":0},{"$f":"E62+F62","v":0}]
[]
[null,null,null,null,{"$f":"SUM(E7:E61)","v":0}]
[]
[null,null,null,1894055.04,{"$f":"E64*13/100","v":0}]
[null,null,null,1894022.3,"."]
[null,null,null,{"$f":"D67*13%","v":246222.899}]
[null,null,null,264.25620000000004]
[null,null,null,{"$f":"SUM(D68:D69)","v":246487.15520000001}]

{"sheet":"يوليو 2020","index":10,"n_rows":107,"n_cols":9,"rows_kept":107,"cut":false,"hidden":false,"merged":[[98,0,98,3]]}
[]
[]
[]
[]
["م","اسم الشركة","العنوان","رقم الفاتورة","القيمة قبل الضريبة","الضريبة","القيمة بعد الضريبة","التاريخ",0.01]
[1,null,null,null,{"$f":"G6/114%","v":0},{"$f":"E6*14%","v":0},null,null,{"$f":"E6*$I$5","v":0}]
[{"$f":"IF(B7<>\"\",A6+1,\"\")","v":""},null,null,null,{"$f":"G7/114%","v":0},{"$f":"E7*14%","v":0},null,null,{"$f":"E7*$I$5","v":0}]
[{"$f":"IF(B8<>\"\",A7+1,\"\")","v":""},null,null,null,0,{"$f":"E8*14%","v":0},null,null,0]
["",null,null,null,0,{"$f":"E9*14%","v":0},null,null,0]
["",null,null,null,0,0,null,null,0]
["",null,null,null,0,0,null,null,0]
["",null,null,null,0,0,null,null,0]
["",null,null,null,0,0,null,null,0]
["",null,null,null,0,0,null,null,0]
["",null,null,null,0,0,null,null,0]
["",null,null,null,0,0,null,null,0]
["",null,null,null,0,0,null,null,0]
["",null,null,null,0,0,null,null,0]
["",null,null,null,0,0,null,null,0]
["",null,null,null,0,0,null,null,0]
["",null,null,null,0,0,null,null,0]
["",null,null,null,0,0,null,null,0]
["",null,null,null,0,0,null,null,0]
["",null,null,null,0,0,null,null,0]
["",null,null,null,0,0,null,null,0]
["",null,null,null,0,0,null,null,0]
["",null,null,null,0,0,null,null,0]
["",null,null,null,0,0,null,null,0]
["",null,null,null,0,0,null,null,0]
["",null,null,null,0,0,null,null,0]
["",null,null,null,0,0,null,null,0]
["",null,null,null,0,0,null,null,0]
["",null,null,null,0,0,null,null,0]
["",null,null,null,0,0,null,null,0]
["",null,null,null,0,0,null,null,0]
["",null,null,null,0,0,null,null,0]
["",null,null,null,0,0,null,null,0]
["",null,null,null,0,0,null,null,0]
["",null,null,null,0,0,null,null,0]
["",null,null,null,{"$f":"G40/114%","v":0},0,null,null,0]
["",null,null,null,{"$f":"G41/114%","v":0},0,null,null,0]
["",null,null,null,{"$f":"G42/114%","v":0},0,null,null,0]
["",null,null,null,{"$f":"G43/114%","v":0},{"$f":"E43*14%","v":0},null,null,0]
["",null,null,null,0,0,null,null,0]
["",null,null,null,0,0,null,null,0]
["",null,null,null,0,0,null,null,0]
["",null,null,null,0,0,null,null,0]
["",null,null,null,0,0,null,null,0]
["",null,null,null,0,0,null,null,0]
["",null,null,null,0,0,null,null,0]
["",null,null,null,0,0,null,null,0]
["",null,null,null,0,0,null,null,0]
["",null,null,null,0,0,null,null,0]
["",null,null,null,0,0,null,null,0]
["",null,null,null,0,0,null,null,0]
["",null,null,null,0,0,null,null,0]
["",null,null,null,0,0,null,null,0]
["",null,null,null,0,0,null,null,0]
["",null,null,null,0,0,null,null,0]
["",null,null,null,0,0,null,null,0]
["",null,null,null,0,0,null,null,0]
["",null,null,null,0,0,null,null,0]
["",null,null,null,0,0,null,null,0]
["",null,null,null,0,0,null,null,0]
["",null,null,null,0,0,null,null,0]
["",null,null,null,0,0,null,null,0]
["",null,null,null,0,0,null,null,0]
["",null,null,null,0,0,null,null,0]
["",null,null,null,0,0,null,null,0]
["",null,null,null,0,0,null,null,0]
["",null,null,null,0,0,null,null,{"$f":"E71*$I$5","v":0}]
[{"$f":"IF(B72<>\"\",A71+1,\"\")","v":""},null,null,null,0,0,null,null,0]
["",null,null,null,0,0,null,null,0]
["",null,null,null,0,0,null,null,0]
["",null,null,null,0,0,null,null,0]
["",null,null,null,0,0,null,null,0]
["",null,null,null,0,0,null,null,0]
["",null,null,null,0,0,null,null,0]
["",null,null,null,0,{"$f":"E79*14%","v":0},null,null,0]
["",null,null,null,0,0,null,null,0]
["",null,null,null,0,0,null,null,0]
["",null,null,null,0,0,null,null,0]
["",null,null,null,0,0,null,null,0]
["",null,null,null,0,0,null,null,0]
["",null,null,null,0,{"$f":"E85*14%","v":0},null,null,0]
["",null,null,null,0,0,null,null,0]
["",null,null,null,0,{"$f":"E87*14%","v":0},null,null,0]
["",null,null,null,0,0,null,null,0]
["",null,null,null,0,0,null,null,0]
["",null,null,null,0,0,null,null,0]
["",null,null,null,0,{"$f":"E91*14%","v":0},null,null,0]
["",null,null,null,0,{"$f":"E92*14%","v":0},null,null,0]
["",null,null,null,0,{"$f":"E93*14%","v":0},null,null,0]
["",null,null,null,0,0,null,null,0]
["",null,null,null,0,0,null,null,0]
["",null,null,null,0,0,null,null,0]
["",null,null,null,0,0,null,null,0]
["",null,null,null,0,0,null,null,0]
["الاجمالى",null,null,null,{"$f":"SUM(E6:E98)","v":0},{"$f":"E99*14%","v":0},{"$f":"E99+F99","v":0}]
[]
[null,null,null,null,{"$f":"SUM(E7:E91)","v":0}]
[]
[null,null,null,1894055.04,{"$f":"E101*13/100","v":0}]
[null,null,null,1894022.3,1894022.2990000001,{"$f":"E99*13/100","v":0},{"$f":"E104+F104","v":1894022.2990000001}]
[null,null,null,{"$f":"D104*13%","v":246222.899},1894022.2990000001,{"$f":"E99*13/100","v":0},{"$f":"E105+F105","v":1894022.2990000001}]
[null,null,null,264.25620000000004]
[null,null,null,{"$f":"SUM(D105:D106)","v":246487.15520000001}]

{"sheet":"Sheet9","index":11,"n_rows":6,"n_cols":5,"rows_kept":6,"cut":false,"hidden":false,"merged":[]}
[null,null,"2019-08-01"]
[]
["اسم الشركة"," التاريخ"," القيمة قبل الضريبة"," الضريبة"," القيمة بعد الضريبة"]
["(blank)",null,0,0]
["(blank)",null,0,0]
["Grand Total",null,0,0]

{"sheet":"اغسطس2019","index":12,"n_rows":87,"n_cols":9,"rows_kept":87,"cut":false,"hidden":false,"merged":[[78,0,78,3]]}
[]
[]
[]
[]
["م","اسم الشركة","العنوان","رقم الفاتورة","القيمة قبل الضريبة","الضريبة","القيمة بعد الضريبة","التاريخ",0.01]
[1,null,null,null,{"$f":"G6/114%","v":0},{"$f":"E6*14%","v":0},null,null,{"$f":"E6*$I$5","v":0}]
[{"$f":"A6+1","v":2},null,null,null,{"$f":"G7/114%","v":0},{"$f":"E7*14%","v":0},null,null,{"$f":"E7*$I$5","v":0}]
[{"$f":"A7+1","v":3},null,null,null,{"$f":"G8/114%","v":0},0,null,null,0]
[{"$f":"A8+1","v":4},null,null,null,0,0,null,null,0]
[5,null,null,null,0,0,null,null,0]
[6,null,null,null,0,0,null,null,0]
[7,null,null,null,0,0,null,null,0]
[8,null,null,null,0,0,null,null,0]
[9,null,null,null,0,0,null,null,0]
[10,null,null,null,0,0,null,null,0]
[11,null,null,null,0,0,null,null,0]
[12,null,null,null,0,0,null,null,0]
[13,null,null,null,0,0,null,null,0]
[14,null,null,null,0,0,null,null,0]
[15,null,null,null,0,0,null,null,0]
[16,null,null,null,0,0,null,null,0]
[17,null,null,null,0,0,null,null,0]
[18,null,null,null,0,0,null,null,0]
[19,null,null,null,0,0,null,null,0]
[20,null,null,null,0,0,null,null,0]
[21,null,null,null,0,0,null,null,0]
[22,null,null,null,0,0,null,null,0]
[23,null,null,null,0,0,null,null,0]
[24,null,null,null,0,0,null,null,0]
[25,null,null,null,0,0,null,null,0]
[26,null,null,null,0,0,null,null,0]
[27,null,null,null,0,0,null,null,0]
[28,null,null,null,0,0,null,null,0]
[29,null,null,null,0,0,null,null,0]
[30,null,null,null,0,0,null,null,0]
[31,null,null,null,0,0,null,null,0]
[32,null,null,null,0,0,null,null,0]
[33,null,null,null,0,0,null,null,0]
[34,null,null,null,0,0,null,null,0]
[35,null,null,null,0,0,null,null,0]
[36,null,null,null,0,0,null,null,0]
[37,null,null,null,0,0,null,null,0]
[38,null,null,null,0,0,null,null,0]
[39,null,null,null,0,0,null,null,0]
[40,null,null,null,0,0,null,null,0]
[41,null,null,null,0,{"$f":"E46*14%","v":0},null,null,0]
[42,null,null,null,0,0,null,null,0]
[43,null,null,null,0,0,null,null,0]
[44,null,null,null,0,0,null,null,0]
[45,null,null,null,0,0,null,null,0]
[46,null,null,null,0,0,null,null,0]
[47,null,null,null,0,0,null,null,0]
[48,null,null,null,0,0,null,null,0]
[49,null,null,null,0,0,null,null,0]
[50,null,null,null,0,0,null,null,0]
[51,null,null,null,0,0,null,null,0]
[52,null,null,null,0,0,null,null,0]
[53,null,null,null,0,0,null,null,0]
[54,null,null,null,0,0,null,null,0]
[55,null,null,null,0,0,null,null,0]
[56,null,null,null,0,0,null,null,0]
[57,null,null,null,0,0,null,null,0]
[58,null,null,null,0,{"$f":"E63*14%","v":0},null,null,0]
[59,null,null,null,0,0,null,null,0]
[60,null,null,null,0,0,null,null,0]
[61,null,null,null,0,0,null,null,0]
[62,null,null,null,0,0,null,null,0]
[63,null,null,null,0,0,null,null,0]
[64,null,null,null,0,0,null,null,0]
[65,null,null,null,0,0,null,null,0]
[66,null,null,null,0,0,null,null,{"$f":"E71*$I$5","v":0}]
[67,null,null,null,0,0,null,null,0]
[68,null,null,null,0,{"$f":"E73*14%","v":0},null,null,0]
[{"$f":"A73+1","v":69},null,null,null,0,0,null,null,0]
[70,null,null,null,0,0,null,null,0]
[71,null,null,null,0,0,null,null,0]
[72,null,null,null,0,0,null,null,0]
[73,null,null,null,0,0,null,null,0]
["الاجمالى",null,null,null,{"$f":"SUM(E6:E78)","v":0},{"$f":"E79*14%","v":0},{"$f":"E79+F79","v":0}]
[]
[null,null,null,null,{"$f":"SUM(E7:E78)","v":0},{"$f":"SUM(F7:F79)","v":0},{"$f":"SUM(G7:G78)","v":0}]
[]
[null,null,null,1894055.04]
[null,null,null,1894022.3]
[null,null,null,{"$f":"D84*13%","v":246222.899},1894022.2990000001,{"$f":"E79*13/100","v":0},{"$f":"E85+F85","v":1894022.2990000001}]
[null,null,null,264.25620000000004]
[null,null,null,{"$f":"SUM(D85:D86)","v":246487.15520000001}]

{"sheet":"سبتمبر 2019","index":13,"n_rows":68,"n_cols":9,"rows_kept":68,"cut":false,"hidden":false,"merged":[[59,0,59,3]]}
[]
[]
[]
[]
["م","اسم الشركة","العنوان","رقم الفاتورة","القيمة قبل الضريبة","الضريبة","القيمة بعد الضريبة","التاريخ",0.01]
[1,null,null,null,{"$f":"G6/114%","v":0},{"$f":"E6*14%","v":0},null,null,{"$f":"E6*$I$5","v":0}]
[2,null,null,null,{"$f":"G7/114%","v":0},{"$f":"E7*14%","v":0},null,null,{"$f":"E7*$I$5","v":0}]
[3,null,null,null,0,0,null,null,0]
[4,null,null,null,0,0,null,null,0]
[5,null,null,null,0,0,null,null,0]
[6,null,null,null,0,0,null,null,0]
[7,null,null,null,0,0,null,null,0]
[8,null,null,null,0,0,null,null,0]
[9,null,null,null,0,0,null,null,{"$f":"E14*$I$5","v":0}]
[10,null,null,null,0,0,null,null,0]
[11,null,null,null,0,0,null,null,0]
[12,null,null,null,0,0,null,null,0]
[13,null,null,null,0,0,null,null,0]
[14,null,null,null,0,0,null,null,0]
[15,null,null,null,0,0,null,null,{"$f":"E20*$I$5","v":0}]
[16,null,null,null,{"$f":"G21/114%","v":0},{"$f":"E21*14%","v":0},null,null,0]
[17,null,null,null,0,0,null,null,0]
[18,null,null,null,0,0,null,null,0]
[19,null,null,null,0,0,null,null,{"$f":"E24*$I$5","v":0}]
[20,null,null,null,0,0]
[21,null,null,null,0,0]
[22,null,null,null,0,0]
[23,null,null,null,0,0]
[24,null,null,null,0,0]
[25,null,null,null,0,0]
[26,null,null,null,0,0]
[27,null,null,null,0,0]
[28,null,null,null,0,0]
[29,null,null,null,0,0]
[30,null,null,null,0,0]
[31,null,null,null,0,0]
[32,null,null,null,0,0]
[33,null,null,null,0,0]
[34,null,null,null,0,0]
[35,null,null,null,0,0]
[36,null,null,null,0,0]
[37,null,null,null,0,0]
[38,null,null,null,{"$f":"G43/114%","v":0},{"$f":"E43*14%","v":0}]
[39,null,null,null,0,0]
[40,null,null,null,0,0]
[41,null,null,null,0,0]
[42,null,null,null,0,0]
[43,null,null,null,0,0]
[44,null,null,null,0,0]
[45,null,null,null,0,0]
[null,null,null,null,0,0]
[null,null,null,null,0,0]
[null,null,null,null,0,0]
[null,null,null,null,0,0]
[null,null,null,null,0,0]
[null,null,null,null,0,0]
[null,null,null,null,0,0]
[null,null,null,null,0,0]
[null,null,null,null,0,0]
["الاجمالى",null,null,null,{"$f":"SUM(E6:E59)","v":0},{"$f":"E60*14%","v":0},{"$f":"E60+F60","v":0}]
[]
[]
[]
[null,null,null,1894055.04]
[null,null,null,1894022.3]
[null,null,null,{"$f":"D65*13%","v":246222.899}]
[null,null,null,264.25620000000004]
[null,null,null,{"$f":"SUM(D66:D67)","v":246487.15520000001}]

{"sheet":"Sheet10","index":14,"n_rows":6,"n_cols":5,"rows_kept":6,"cut":false,"hidden":false,"merged":[]}
[null,null,"2019-10-01"]
[]
["اسم الشركة"," التاريخ"," القيمة قبل الضريبة"," الضريبة"," القيمة بعد الضريبة"]
["(blank)",null,0,0]
["(blank)",null,0,0]
["Grand Total",null,0,0]

{"sheet":"اكتوبر2019","index":15,"n_rows":69,"n_cols":11,"rows_kept":69,"cut":false,"hidden":false,"merged":[[60,0,60,3]]}
[]
[]
[]
[]
["م","اسم الشركة","العنوان","رقم الفاتورة","القيمة قبل الضريبة","الضريبة","القيمة بعد الضريبة","التاريخ",0.01]
[1,null,null,null,null,{"$f":"E6*14%","v":0},null,null,{"$f":"E6*$I$5","v":0}]
[2,null,null,null,null,{"$f":"E7*14%","v":0},null,null,{"$f":"E7*$I$5","v":0}]
[3,null,null,null,null,{"$f":"E8*14%","v":0},null,null,0]
[4,null,null,null,null,0,null,null,0]
[5,null,null,null,null,0,null,null,0]
[6,null,null,null,null,0,null,null,0]
[7,null,null,null,null,0,null,null,0]
[8,null,null,null,{"$f":"G13/114%","v":0},0]
[9,null,null,null,0,0]
[10,null,null,null,0,0]
[11,null,null,null,0,0]
[12,null,null,null,0,0]
[13,null,null,null,0,0]
[14,null,null,null,0,0]
[15,null,null,null,0,0]
[16,null,null,null,0,0]
[17,null,null,null,0,0]
[18,null,null,null,0,0]
[19,null,null,null,0,0]
[20,null,null,null,0,0]
[21,null,null,null,0,0]
[22,null,null,null,0,0]
[23,null,null,null,0,0]
[24,null,null,null,0,0]
[25,null,null,null,0,0]
[26,null,null,null,0,0]
[27,null,null,null,0,0]
[28,null,null,null,0,0]
[29,null,null,null,0,0]
[30,null,null,null,0,0]
[31,null,null,null,0,0]
[32,null,null,null,0,0]
[33,null,null,null,0,0]
[null,null,null,null,0,0]
[null,null,null,null,0,0]
[null,null,null,null,0,0]
[null,null,null,null,0,0]
[null,null,null,null,0,0]
[null,null,null,null,0,0]
[null,null,null,null,0,0]
[null,null,null,null,0,0]
[null,null,null,null,0,0]
[null,null,null,null,0,0]
[null,null,null,null,0,0]
[null,null,null,null,0,0]
[null,null,null,null,0,0]
[null,null,null,null,0,0]
[null,null,null,null,0,0]
[null,null,null,null,0,0]
[null,null,null,null,0,0]
[null,null,null,null,0,0]
[null,null,null,null,0,0]
[null,null,null,null,0,0]
[null,null,null,null,0,0]
[null,null,null,null,0,0]
["الاجمالى",null,null,null,{"$f":"SUM(E6:E60)","v":0},{"$f":"E61*14%","v":0},{"$f":"E61+F61","v":0}]
[]
[null,null,null,null,{"$f":"SUM(E8:E60)","v":0},{"$f":"SUM(F8:F61)","v":0},{"$f":"SUM(G8:G60)","v":0},null,null,null,{"$f":"SUM(K61:K62)","v":0}]
[]
[null,null,null,1894055.04,{"$f":"E63*13/100","v":0}]
[null,null,null,1894022.3,1894022.2990000001,{"$f":"E61*13/100","v":0},{"$f":"E66+F66","v":1894022.2990000001}]
[null,null,null,{"$f":"D66*13%","v":246222.899},1894022.2990000001,{"$f":"E61*13/100","v":0},{"$f":"E67+F67","v":1894022.2990000001}]
[null,null,null,264.25620000000004]
[null,null,null,{"$f":"SUM(D67:D68)","v":246487.15520000001}]

{"sheet":"Sheet4","index":16,"n_rows":6,"n_cols":5,"rows_kept":6,"cut":false,"hidden":false,"merged":[]}
[null,null,"2019-11-01"]
[]
["Row Labels"," التاريخ"," القيمة قبل الضريبة"," الضريبة"," القيمة بعد الضريبة"]
["(blank)",null,0,0]
["(blank)",null,0,0]
["Grand Total",null,0,0]

{"sheet":"نوفمبر2019","index":17,"n_rows":63,"n_cols":11,"rows_kept":63,"cut":false,"hidden":false,"merged":[[54,0,54,3]]}
[]
[]
[]
[]
["م","اسم الشركة","العنوان","رقم الفاتورة","القيمة قبل الضريبة","الضريبة","القيمة بعد الضريبة","التاريخ",0.01,"رقم التسجيل الضريبى","رقم الملف"]
[1,null,null,null,{"$f":"G6/114%","v":0},{"$f":"E6*14%","v":0}]
[{"$f":"A6+1","v":2},null,null,null,{"$f":"G7/114%","v":0},{"$f":"E7*14%","v":0}]
[{"$f":"A7+1","v":3},null,null,null,0,0]
[4,null,null,null,0,0]
[{"$f":"A9+1","v":5},null,null,null,0,0]
[6,null,null,null,0,0]
[7,null,null,null,0,0,null,null,{"$f":"E12*$I$5","v":0}]
[8,null,null,null,0,0,null,null,{"$f":"E13*$I$5","v":0}]
[9,null,null,null,0,0,null,null,0]
[10,null,null,null,0,0,null,null,0]
[11,null,null,null,0,0,null,null,0]
[12,null,null,null,0,0,null,null,0]
[13,null,null,null,0,0,null,null,0]
[14,null,null,null,0,0,null,null,0]
[15,null,null,null,0,0,null,null,0]
[16,null,null,null,0,0]
[17,null,null,null,0,0]
[18,null,null,null,0,0]
[19,null,null,null,0,0]
[20,null,null,null,0,0]
[21,null,null,null,0,0]
[22,null,null,null,0,0]
[23,null,null,null,0,0]
[24,null,null,null,0,0]
[25,null,null,null,0,0]
[26,null,null,null,0,0]
[27,null,null,null,0,0]
[28,null,null,null,0,0]
[29,null,null,null,0,0]
[30,null,null,null,0,0]
[31,null,null,null,0,0]
[32,null,null,null,0,0]
[33,null,null,null,0,0]
[34,null,null,null,0,0]
[35,null,null,null,0,0]
[36,null,null,null,0,0]
[37,null,null,null,0,0]
[38,null,null,null,0,0]
[39,null,null,null,0,0]
[null,null,null,null,0,0]
[null,null,null,null,0,0]
[null,null,null,null,0,0]
[null,null,null,null,0,0]
[null,null,null,null,0,0]
[null,null,null,null,0,0]
[null,null,null,null,0,0]
[null,null,null,null,0,0]
[null,null,null,null,0,0]
[null,null,null,null,0,0]
["الاجمالى",null,null,null,{"$f":"SUM(E6:E54)","v":0},{"$f":"E55*14%","v":0},{"$f":"E55+F55","v":0},null,{"$f":"SUM(I12:I54)","v":0}]
[]
[null,null,null,null,{"$f":"SUM(E7:E54)","v":0},null,{"$f":"SUM(G7:G54)","v":0}]
[null,null,null,null,"."]
[null,null,null,1894055.04,{"$f":"E57*13/100","v":0}]
[null,null,null,1894022.3,1894022.2990000001,{"$f":"E55*13/100","v":0},{"$f":"E60+F60","v":1894022.2990000001}]
[null,null,null,{"$f":"D60*13%","v":246222.899},1894022.2990000001,{"$f":"E55*13/100","v":0},{"$f":"E61+F61","v":1894022.2990000001}]
[null,null,null,264.25620000000004]
[null,null,null,{"$f":"SUM(D61:D62)","v":246487.15520000001}]

{"sheet":"Sheet3","index":18,"n_rows":5,"n_cols":5,"rows_kept":5,"cut":false,"hidden":false,"merged":[]}
[null,"2019-12-01"]
["Row Labels"," التاريخ"," القيمة قبل الضريبة"," الضريبة"," القيمة بعد الضريبة"]
["(blank)",null,0,0]
["(blank)",null,0,0]
["Grand Total",null,0,0]

{"sheet":"ديسمبر2019","index":19,"n_rows":68,"n_cols":9,"rows_kept":68,"cut":false,"hidden":false,"merged":[[59,0,59,3]]}
[]
[]
[]
[]
["م","اسم الشركة","العنوان","رقم الفاتورة","القيمة قبل الضريبة","الضريبة","القيمة بعد الضريبة","التاريخ",0.01]
[1,null,null,null,{"$f":"G6/114%","v":0},{"$f":"E6*14%","v":0},null,null,{"$f":"E6*$I$5","v":0}]
[{"$f":"A6+1","v":2},null,null,null,{"$f":"G7/114%","v":0},{"$f":"E7*14%","v":0},null,null,{"$f":"E7*$I$5","v":0}]
[{"$f":"A7+1","v":3},null,null,null,0,0,null,null,0]
[{"$f":"A8+1","v":4},null,null,null,0,0,null,null,0]
[5,null,null,null,0,0,null,null,0]
[6,null,null,null,0,0,null,null,0]
[7,null,null,null,0,0,null,null,0]
[8,null,null,null,0,0,null,null,0]
[9,null,null,null,0,0,null,null,0]
[10,null,null,null,0,0,null,null,0]
[11,null,null,null,0,0,null,null,0]
[12,null,null,null,0,0,null,null,0]
[13,null,null,null,0,0,null,null,0]
[14,null,null,null,0,0,null,null,0]
[15,null,null,null,0,0,null,null,0]
[16,null,null,null,0,0,null,null,0]
[17,null,null,null,0,0,null,null,0]
[18,null,null,null,0,0,null,null,0]
[19,null,null,null,0,0,null,null,0]
[20,null,null,null,0,0]
[21,null,null,null,0,0]
[22,null,null,null,0,0]
[23,null,null,null,0,0]
[24,null,null,null,0,0]
[25,null,null,null,0,0]
[26,null,null,null,0,0]
[27,null,null,null,0,0]
[28,null,null,null,0,0]
[29,null,null,null,0,0]
[30,null,null,null,0,0]
[31,null,null,null,0,0]
[32,null,null,null,0,0]
[33,null,null,null,0,0]
[34,null,null,null,0,0]
[35,null,null,null,0,0]
[36,null,null,null,0,0]
[37,null,null,null,0,0]
[38,null,null,null,0,0]
[39,null,null,null,0,0]
[40,null,null,null,0,0]
[41,null,null,null,0,0]
[42,null,null,null,0,0]
[43]
[44]
[45]
[46]
[47]
[48]
[49,null,null,null,0,0]
[50,null,null,null,0,0]
[51,null,null,null,0,0]
[52,null,null,null,0,0]
[53,null,null,null,0,0]
[{"$f":"A31+1","v":27},null,null,null,0,0]
["الاجمالى",null,null,null,{"$f":"SUM(E6:E59)","v":0},{"$f":"SUM(F6:F59)","v":0},{"$f":"E60+F60","v":0}]
[]
[null,null,null,null,{"$f":"SUM(E7:E59)","v":0},{"$f":"SUM(F7:F60)","v":0},{"$f":"SUM(G7:G59)","v":0}]
[]
[null,null,null,1894055.04,{"$f":"E62*13/100","v":0},null,";\""]
[null,null,null,1894022.3,1894022.2990000001,{"$f":"E60*13/100","v":0},{"$f":"E65+F65","v":1894022.2990000001}]
[null,null,null,{"$f":"D65*13%","v":246222.899},1894022.2990000001,{"$f":"E60*13/100","v":0},{"$f":"E66+F66","v":1894022.2990000001}]
[null,null,null,264.25620000000004]
[null,null,null,{"$f":"SUM(D66:D67)","v":246487.15520000001}]

{"sheet":"Sheet2","index":20,"n_rows":29,"n_cols":7,"rows_kept":29,"cut":false,"hidden":false,"merged":[[1,1,1,4]]}
[]
[null,"ملخص مشتريات لسنة 2020"]
[]
[null,"الشهر ","المشتريات","ضريبة المشتريات","إجمالي مشتريات"]
[null,"يناير",{"$f":"يناير2020!E59","v":0},{"$f":"يناير2020!F59","v":0},{"$f":"يناير2020!G59","v":0}]
[null,"فبراير",{"$f":"فبراير2020!E60","v":0},{"$f":"فبراير2020!F60","v":0},{"$f":"فبراير2020!G60","v":0}]
[null,"مارس",{"$f":"مارس2020!E61","v":0},{"$f":"مارس2020!F61","v":0},{"$f":"مارس2020!G61","v":0}]
[null,"أبريل",{"$f":"'ابريل 2020'!E61","v":0},{"$f":"'ابريل 2020'!F61","v":0},{"$f":"'ابريل 2020'!G61","v":0}]
[null,"مايو",{"$f":"مايو22020!E58","v":0},{"$f":"مايو22020!F58","v":0},{"$f":"مايو22020!G58","v":0}]
[null,"يونيو",{"$f":"'يونيو 2020'!E62","v":0},{"$f":"'يونيو 2020'!F62","v":0},{"$f":"'يونيو 2020'!G62","v":0}]
[null,"يوليو",{"$f":"'يوليو 2020'!E99","v":0},{"$f":"'يوليو 2020'!F99","v":0},{"$f":"'يوليو 2020'!G99","v":0}]
[null,"أغسطس",{"$f":"اغسطس2019!E79","v":0},{"$f":"اغسطس2019!F79","v":0},{"$f":"اغسطس2019!G79","v":0}]
[null,"سبتمبر",{"$f":"'سبتمبر 2019'!E60","v":0},{"$f":"'سبتمبر 2019'!F60","v":0},{"$f":"'سبتمبر 2019'!G60","v":0}]
[null,"أكتوبر",{"$f":"اكتوبر2019!E61","v":0},{"$f":"اكتوبر2019!F61","v":0},{"$f":"اكتوبر2019!G61","v":0}]
[null,"نوفمبر",{"$f":"نوفمبر2019!E55","v":0},{"$f":"نوفمبر2019!F55","v":0},{"$f":"نوفمبر2019!G55","v":0}]
[null,"ديسمبر",{"$f":"ديسمبر2019!E60","v":0},{"$f":"ديسمبر2019!F60","v":0},{"$f":"ديسمبر2019!G60","v":0}]
[null,"الاجمالى ",{"$f":"SUM(C5:C16)","v":0},{"$f":"SUM(D5:D16)","v":0},0]
[]
[]
[]
[]
[]
[]
[]
[null,null,"اسم الشركة","القيمة قبل الضريبة","الضريبة","القيمة بعد الضريبة"]
[null,null,"سيراميكا كليوباترا جروب",2485453.1821262222,null,null,499498.16000000061]
[null,null,"الدورادو لصناعة السيراميك والأدوات الصحية",2242958.9692982459,null,null,362420.99999999953]
[null,null,"سيراميكا فانسى",1233872.6906225742,null,null,122882.53000000003]
[null,null,"كليوباترا جاليريا للاسمنت",2486770.2715541064,null,null,309297.71052631689]

{"sheet":"pivot","index":21,"n_rows":6,"n_cols":6,"rows_kept":6,"cut":false,"hidden":false,"merged":[]}
[]
[]
[null,null,"Values"]
["اسم الشركة","رقم الفاتورة"," القيمة قبل الضريبة"," الضريبة"," القيمة بعد الضريبة","Product of التاريخ"]
["(blank)","(blank)"]
["Grand Total"]

{"sheet":"data","index":22,"n_rows":529,"n_cols":8,"rows_kept":529,"cut":false,"hidden":false,"merged":[]}
[]
[]
["اسم الشركة","العنوان","رقم الفاتورة","القيمة قبل الضريبة","الضريبة","القيمة بعد الضريبة","التاريخ",0.01]
[]
[null,3]
[null,33]
[]
[]
[]
[]
[]
[]
[]
[]
[]
[]
[]
[]
[]
[]
[]
[]
[]
[]
[]
[]
[]
[]
[]
[]
[]
[]
[]
[]
[]
[]
[]
[]
[]
[]
[]
[]
[]
[]
[]
[]
[]
[]
[]
[]
[]
[]
[]
[]
[]
[]
[]
[]
[]
[]
[]
[]
[]
[]
[]
[]
[]
[]
[]
[]
[]
[]
[]
[]
[]
[]
[]
[]
[]
[]
[]
[]
[]
[]
[]
[]
[]
[]
[]
[]
[]
[]
[]
[]
[]
[]
[]
[]
[]
[]
[]
[]
[]
[]
[]
[]
[]
[]
[]
[]
[]
[]
[]
[]
[]
[]
[]
[]
[]
[]
[]
[]
[]
[]
[]
[]
[]
[]
[]
[]
[]
[]
[]
[]
[]
[]
[]
[]
[]
[]
[]
[]
[]
[]
[]
[]
[]
[]
[]
[]
[]
[]
[]
[]
[]
[]
[]
[]
[]
[]
[]
[]
[]
[]
[]
[]
[]
[]
[]
[]
[]
[]
[]
[]
[]
[]
[]
[]
[]
[]
[]
[]
[]
[]
[]
[]
[]
[]
[]
[]
[]
[]
[]
[]
[]
[]
[]
[]
[]
[]
[]
[]
[]
[]
[]
[]
[]
[]
[]
[]
[]
[]
[]
[]
[]
[]
[]
[]
[]
[]
[]
[]
[]
[]
[]
[]
[]
[]
[]
[]
[]
[]
[]
[]
[]
[]
[]
[]
[]
[]
[]
[]
[]
[]
[]
[]
[]
[]
[]
[]
[]
[]
[]
[]
[]
[]
[]
[]
[]
[]
[]
[]
[]
[]
[]
[]
[]
[]
[]
[]
[]
[]
[]
[]
[]
[]
[]
[]
[]
[]
[]
[]
[]
[]
[]
[]
[null,null,null,null,null,null,null,{"$f":"D287*$H$3","v":0}]
[null,null,null,null,null,null,null,0]
[null,null,null,null,null,null,null,0]
[null,null,null,null,null,null,null,0]
[null,null,null,null,null,null,null,0]
[null,null,null,null,null,null,null,0]
[null,null,null,null,null,null,null,0]
[null,null,null,null,null,null,null,0]
[null,null,null,null,null,null,null,0]
[null,null,null,null,null,null,null,0]
[null,null,null,null,null,null,null,0]
[null,null,null,null,null,null,null,0]
[null,null,null,null,null,null,null,0]
[null,null,null,null,null,null,null,0]
[null,null,null,null,null,null,null,0]
[null,null,null,null,null,null,null,0]
[null,null,null,null,null,null,null,0]
[null,null,null,null,null,null,null,0]
[null,null,null,null,null,null,null,0]
[null,null,null,null,null,null,null,0]
[null,null,null,null,null,null,null,0]
[null,null,null,null,null,null,null,0]
[null,null,null,null,null,null,null,0]
[null,null,null,null,null,null,null,0]
[null,null,null,null,null,null,null,0]
[null,null,null,null,null,null,null,0]
[null,null,null,null,null,null,null,0]
[null,null,null,null,null,null,null,0]
[null,null,null,null,null,null,null,0]
[null,null,null,null,null,null,null,0]
[null,null,null,null,null,null,null,0]
[null,null,null,null,null,null,null,0]
[null,null,null,null,null,null,null,0]
[null,null,null,null,null,null,null,0]
[null,null,null,null,null,null,null,0]
[null,null,null,null,null,null,null,0]
[null,null,null,null,null,null,null,0]
[null,null,null,null,null,null,null,0]
[null,null,null,null,null,null,null,0]
[null,null,null,null,null,null,null,{"$f":"D326*$H$3","v":0}]
[null,null,null,null,null,null,null,0]
[null,null,null,null,null,null,null,0]
[null,null,null,null,null,null,null,0]
[null,null,null,null,null,null,null,0]
[null,null,null,null,null,null,null,0]
[null,null,null,null,null,null,null,0]
[null,null,null,null,null,null,null,0]
[null,null,null,null,null,null,null,0]
[null,null,null,null,null,null,null,0]
[null,null,null,null,null,null,null,0]
[null,null,null,null,null,null,null,0]
[null,null,null,null,null,null,null,0]
[null,null,null,null,null,null,null,0]
[null,null,null,null,null,null,null,0]
[null,null,null,null,null,null,null,0]
[null,null,null,null,null,null,null,0]
[null,null,null,null,null,null,null,0]
[null,null,null,null,null,null,null,0]
[null,null,null,null,null,null,null,0]
[null,null,null,null,null,null,null,0]
[null,null,null,null,null,null,null,0]
[null,null,null,null,null,null,null,0]
[null,null,null,null,null,null,null,0]
[null,null,null,null,null,null,null,0]
[null,null,null,null,null,null,null,0]
[null,null,null,null,null,null,null,0]
[null,null,null,null,null,null,null,0]
[null,null,null,null,null,null,null,0]
[null,null,null,null,null,null,null,0]
[null,null,null,null,null,null,null,0]
[null,null,null,null,null,null,null,0]
[null,null,null,null,null,null,null,0]
[null,null,null,null,null,null,null,0]
[null,null,null,null,null,null,null,0]
[null,null,null,null,null,null,null,0]
[null,null,null,null,null,null,null,0]
[null,null,null,null,null,null,null,0]
[null,null,null,null,null,null,null,0]
[null,null,null,null,null,null,null,0]
[null,null,null,null,null,null,null,0]
[null,null,null,null,null,null,null,0]
[null,null,null,null,null,null,null,0]
[null,null,null,null,null,null,null,0]
[null,null,null,null,null,null,null,0]
[null,null,null,null,null,null,null,0]
[null,null,null,null,null,null,null,0]
[null,null,null,null,null,null,null,0]
[null,null,null,null,null,null,null,0]
[null,null,null,null,null,null,null,0]
[null,null,null,null,null,null,null,0]
[null,null,null,null,null,null,null,0]
[null,null,null,null,null,null,null,0]
[null,null,null,null,null,null,null,0]
[null,null,null,null,null,null,null,0]
[null,null,null,null,null,null,null,0]
[null,null,null,null,null,null,null,0]
[null,null,null,null,null,null,null,0]
[null,null,null,null,null,null,null,0]
[null,null,null,null,null,null,null,0]
[null,null,null,null,null,null,null,0]
[null,null,null,null,null,null,null,0]
[null,null,null,null,null,null,null,0]
[null,null,null,null,null,null,null,0]
[null,null,null,null,null,null,null,{"$f":"D390*$H$3","v":0}]
[null,null,null,null,null,null,null,0]
[null,null,null,null,null,null,null,0]
[null,null,null,null,null,null,null,0]
[null,null,null,null,null,null,null,0]
[null,null,null,null,null,null,null,0]
[null,null,null,null,null,null,null,0]
[null,null,null,null,null,null,null,0]
[null,null,null,null,null,null,null,0]
[null,null,null,null,null,null,null,0]
[null,null,null,null,null,null,null,0]
[null,null,null,null,null,null,null,0]
[null,null,null,null,null,null,null,0]
[null,null,null,null,null,null,null,0]
[null,null,null,null,null,null,null,0]
[null,null,null,null,null,null,null,0]
[null,null,null,null,null,null,null,0]
[null,null,null,null,null,null,null,0]
[null,null,null,null,null,null,null,0]
[null,null,null,null,null,null,null,0]
[null,null,null,null,null,null,null,0]
[null,null,null,null,null,null,null,0]
[null,null,null,null,null,null,null,0]
[null,null,null,null,null,null,null,0]
[null,null,null,null,null,null,null,0]
[null,null,null,null,null,null,null,0]
[null,null,null,null,null,null,null,0]
[null,null,null,null,null,null,null,0]
[null,null,null,null,null,null,null,0]
[null,null,null,null,null,null,null,0]
[null,null,null,null,null,null,null,0]
[null,null,null,null,null,null,null,0]
[null,null,null,null,null,null,null,0]
[null,null,null,null,null,null,null,0]
[null,null,null,null,null,null,null,0]
[null,null,null,null,null,null,null,0]
[null,null,null,null,null,null,null,0]
[null,null,null,null,null,null,null,0]
[null,null,null,null,null,null,null,0]
[null,null,null,null,null,null,null,0]
[null,null,null,null,null,null,null,0]
[null,null,null,null,null,null,null,0]
[null,null,null,null,null,null,null,0]
[null,null,null,null,null,null,null,0]
[null,null,null,null,null,null,null,0]
[null,null,null,null,null,null,null,0]
[null,null,null,null,null,null,null,0]
[null,null,null,null,null,null,null,0]
[null,null,null,null,null,null,null,0]
[null,null,null,null,null,null,null,0]
[null,null,null,null,null,null,null,0]
[null,null,null,null,null,null,null,0]
[null,null,null,null,null,null,null,0]
[null,null,null,null,null,null,null,0]
[null,null,null,null,null,null,null,0]
[null,null,null,null,null,null,null,0]
[null,null,null,null,null,null,null,0]
[null,null,null,null,null,null,null,0]
[null,null,null,null,null,null,null,0]
[null,null,null,null,null,null,null,0]
[null,null,null,null,null,null,null,0]
[null,null,null,null,null,null,null,0]
[null,null,null,null,null,null,null,0]
[null,null,null,null,null,null,null,0]
[null,null,null,null,null,null,null,{"$f":"D454*$H$3","v":0}]
[null,null,null,null,null,null,null,0]
[null,null,null,null,null,null,null,0]
[null,null,null,null,null,null,null,0]
[null,null,null,null,null,null,null,0]
[null,null,null,null,null,null,null,0]
[null,null,null,null,null,null,null,0]
[null,null,null,null,null,null,null,0]
[null,null,null,null,null,null,null,0]
[null,null,null,null,null,null,null,0]
[null,null,null,null,null,null,null,0]
[null,null,null,null,null,null,null,0]
[null,null,null,null,null,null,null,0]
[null,null,null,null,null,null,null,0]
[null,null,null,null,null,null,null,0]
[null,null,null,null,null,null,null,0]
[null,null,null,null,null,null,null,0]
[null,null,null,null,null,null,null,0]
[null,null,null,null,null,null,null,0]
[null,null,null,null,null,null,null,0]
[null,null,null,null,null,null,null,0]
[null,null,null,null,null,null,null,0]
[null,null,null,null,null,null,null,0]
[null,null,null,null,null,null,null,0]
[null,null,null,null,null,null,null,0]
[null,null,null,null,null,null,null,0]
[null,null,null,null,null,null,null,0]
[null,null,null,null,null,null,null,0]
[null,null,null,null,null,null,null,0]
[null,null,null,null,null,null,null,0]
[null,null,null,null,null,null,null,0]
[null,null,null,null,null,null,null,0]
[null,null,null,null,null,null,null,0]
[null,null,null,null,null,null,null,0]
[null,null,null,null,null,null,null,0]
[null,null,null,null,null,null,null,0]
[null,null,null,null,null,null,null,0]
[null,null,null,null,null,null,null,0]
[null,null,null,null,null,null,null,0]
[null,null,null,null,null,null,null,0]
[null,null,null,null,null,null,null,0]
[null,null,null,null,null,null,null,0]
[null,null,null,null,null,null,null,0]
[null,null,null,null,null,null,null,0]
[null,null,null,null,null,null,null,0]
[null,null,null,null,null,null,null,0]
[null,null,null,null,null,null,null,0]
[null,null,null,null,null,null,null,0]
[null,null,null,null,null,null,null,0]
[null,null,null,null,null,null,null,0]
[null,null,null,null,null,null,null,0]
[null,null,null,null,null,null,null,0]
[null,null,null,null,null,null,null,0]
[null,null,null,null,null,null,null,0]
[null,null,null,null,null,null,null,0]
[null,null,null,null,null,null,null,0]
[null,null,null,null,null,null,null,0]
[null,null,null,null,null,null,null,0]
[null,null,null,null,null,null,null,0]
[null,null,null,null,null,null,null,0]
[null,null,null,null,null,null,null,0]
[null,null,null,null,null,null,null,0]
[null,null,null,null,null,null,null,0]
[null,null,null,null,null,null,null,0]
[null,null,null,null,null,null,null,{"$f":"D518*$H$3","v":0}]
[null,null,null,null,null,null,null,0]
[null,null,null,null,null,null,null,0]
[null,null,null,null,null,null,null,0]
[null,null,null,null,null,null,null,0]
[null,null,null,null,null,null,null,0]
[null,null,null,null,null,null,null,0]
[null,null,null,null,null,null,null,0]
[null,null,null,null,null,null,null,0]
[null,null,null,null,null,null,null,0]
[null,null,null,null,null,null,null,0]
[null,null,null,null,null,null,null,0]